fUST/lending_fUST_20251001
["ID","MTS","AMOUNT","RATE_DAILY","PERIOD"]
[388710616,1759327860482,-500.0,0.00022191,2]
[388710617,1759327860491,-583.19,0.00022191,2]
[388710618,1759327860501,-1396.49,0.00022191,2]
[388710619,1759327860510,-585.06,0.00022191,2]
[388710620,1759327860519,-500.0,0.00022191,2]
[388710621,1759327860529,-626.73,0.00022191,2]
[388710622,1759327860539,-500.0,0.00022191,2]
[388710623,1759327860548,-314.93223899,0.00022191,2]
[388710624,1759327860557,-654.19,0.00022191,2]
[388710625,1759327860566,-500.0,0.00022191,2]
[388710626,1759327860575,-990.91,0.00022191,2]
[388710627,1759327860584,-618.24266317,0.00022191,2]
[388710628,1759327860594,-871.03,0.00022191,2]
[388710629,1759327860603,-680.72,0.00022191,2]
[388710630,1759327860612,-500.0,0.00022191,2]
[388710631,1759327860621,-1061.8,0.00022191,2]
[388710632,1759327860630,-500.0,0.00022191,2]
[388710633,1759327860640,-500.0,0.00022191,2]
[388710634,1759327860649,-500.0,0.00022465,5]
[388710635,1759327860658,-533.09,0.00022465,2]
[388710636,1759327860667,-320.6,0.00022465,2]
[388710637,1759327860676,-500.0,0.00022465,2]
[388710638,1759327860685,-851.78,0.00022465,2]
[388710639,1759327860695,-520.99,0.00022465,2]
[388710640,1759327860703,-500.0,0.00022465,2]
[388710641,1759327860713,-637.14,0.00022465,2]
[388710642,1759327860722,-2188.24,0.00022465,2]
[388710643,1759327860731,-500.0,0.00022465,2]
[388710644,1759327860740,-500.0,0.00022465,2]
[388710645,1759327860749,-254.51084514,0.00022465,2]
[388710646,1759327860759,-672.61,0.00022465,2]
[388710647,1759327860771,-1419.91,0.00022465,2]
[388710648,1759327860780,-500.0,0.00022465,2]
[388710649,1759327860791,-461.68,0.00022465,2]
[388710650,1759327860801,-500.0,0.00022465,2]
[388710651,1759327860811,-907.68,0.00022465,2]
[388710652,1759327860821,-500.0,0.00022465,2]
[388710653,1759327860830,-2893.3,0.00022465,2]
[388710654,1759327860841,-574.35,0.00022465,2]
[388710655,1759327860850,-2362.01,0.00022465,2]
[388710656,1759327860859,-1540.14,0.00022465,2]
[388710657,1759327860868,-500.0,0.00022465,2]
[388710658,1759327860878,-500.0,0.00022465,2]
[388710659,1759327860887,-3702.8,0.00022465,2]
[388710660,1759327860896,-177.04,0.00022465,2]
[388710661,1759327860906,-500.0,0.00022465,2]
[388710662,1759327860915,-597.1,0.00022465,2]
[388710663,1759327860923,-507.97,0.00022465,2]
[388710664,1759327860932,-345.13032083,0.00022465,2]
[388710665,1759327860941,-585.59,0.00022465,2]
[388710666,1759327860951,-554.95,0.00022465,2]
[388710667,1759327860960,-500.0,0.00022465,2]
[388710668,1759327860969,-500.0,0.00022465,2]
[388710669,1759327860980,-500.0,0.00022465,2]
[388710670,1759327860989,-561.22,0.00022465,2]
[388710671,1759327860998,-500.0,0.00022465,2]
[388710672,1759327861007,-670.65,0.00022465,2]
[388710673,1759327861016,-500.0,0.00022465,2]
[388710674,1759327861026,-500.0,0.00022465,2]
[388710675,1759327861036,-500.0,0.00022465,2]
[388710676,1759327861045,-500.0,0.00022465,2]
[388710677,1759327861055,-752.97,0.00022465,2]
[388710678,1759327861064,-536.7,0.00022465,2]
[388710679,1759327861074,-500.0,0.00022465,2]
[388710680,1759327861083,-531.08,0.00022465,2]
[388710681,1759327861093,-1044.52,0.00022465,2]
[388710682,1759327861102,-500.0,0.00022465,2]
[388710683,1759327861111,-521.98526248,0.00022465,2]
[388710684,1759327861121,-500.0,0.00022465,2]
[388710685,1759327861129,-553.59,0.00022465,2]
[388710686,1759327861139,-1415.31,0.00022465,2]
[388710687,1759327861148,-500.0,0.00022465,2]
[388710688,1759327861157,-500.0,0.00022465,2]
[388710689,1759327861166,-534.93,0.00022465,2]
[388710690,1759327861176,-594.58,0.00022465,2]
[388710691,1759327861187,-500.0,0.00022465,2]
[388710692,1759327861195,-598.62,0.00022465,2]
[388710693,1759327861205,-500.0,0.00022465,2]
[388710694,1759327861215,-583.19,0.00022465,2]
[388710695,1759327861224,-1396.49,0.00022465,2]
[388710696,1759327861232,-585.06,0.00022465,2]
[388710697,1759327861242,-500.0,0.00022465,2]
[388710698,1759327861251,-626.73,0.00022465,2]
[388710699,1759327861261,-500.0,0.00022465,2]
[388710700,1759327861270,-654.19,0.00022465,2]
[388710701,1759327861279,-500.0,0.00022465,2]
[388710702,1759327861288,-990.91,0.00022465,2]
[388710703,1759327861297,-871.03,0.00022465,2]
[388710704,1759327861306,-680.72,0.00022465,2]
[388710705,1759327861315,-500.0,0.00022465,2]
[388710706,1759327861324,-1061.8,0.00022465,2]
[388710707,1759327861334,-500.0,0.00022465,2]
[388710708,1759327861343,-500.0,0.00022465,2]
[388710709,1759327861353,-460.0,0.00022484,2]
[388710710,1759327861362,-151.0,0.000226,5]
[388710711,1759327861372,-3000.0,0.00022712,2]
[388710712,1759327861381,-507.12,0.00022739,5]
[388710713,1759327861391,-533.09,0.00022739,2]
[388710714,1759327861400,-500.0,0.00022739,2]
[388710715,1759327861409,-851.78,0.00022739,2]
[388710716,1759327861520,-500.0,0.00022739,2]
[388710717,1759327861530,-637.14,0.00022739,2]
[388710718,1759327861541,-2188.24,0.00022739,2]
[388710719,1759327861550,-500.0,0.00022739,2]
[388710720,1759327861560,-500.0,0.00022739,2]
[388710721,1759327861569,-672.61,0.00022739,2]
[388710722,1759327861578,-1419.91,0.00022739,2]
[388710723,1759327861587,-500.0,0.00022739,2]
[388710724,1759327861596,-500.0,0.00022739,2]
[388710725,1759327861606,-907.68,0.00022739,2]
[388710726,1759327861615,-500.0,0.00022739,2]
[388710727,1759327861624,-2893.3,0.00022739,2]
[388710728,1759327861634,-574.35,0.00022739,2]
[388710729,1759327861643,-2362.01,0.00022739,2]
[388710730,1759327861653,-1540.14,0.00022739,2]
[388710731,1759327861662,-450.44,0.00022739,2]
[388710732,1759327861671,-500.0,0.00022739,2]
[388710733,1759327861680,-3702.8,0.00022739,2]
[388710734,1759327861689,-500.0,0.00022739,2]
[388710735,1759327861700,-597.1,0.00022739,2]
[388710736,1759327861709,-507.97,0.00022739,2]
[388710737,1759327861718,-585.59,0.00022739,2]
[388710738,1759327861728,-554.95,0.00022739,2]
[388710739,1759327861738,-500.0,0.00022739,2]
[388710740,1759327861747,-500.0,0.00022739,2]
[388710741,1759327861757,-500.0,0.00022739,2]
[388710742,1759327861769,-561.22,0.00022739,2]
[388710743,1759327861778,-238.52,0.00022739,2]
[388710744,1759327861788,-670.65,0.00022739,2]
[388710745,1759327861797,-500.0,0.00022739,2]
[388710746,1759327861808,-335.16790699,0.00022739,2]
[388710747,1759327861818,-500.0,0.00022739,2]
[388710748,1759327861827,-500.0,0.00022739,2]
[388710749,1759327861837,-752.97,0.00022739,2]
[388710750,1759327861848,-536.7,0.00022739,2]
[388710751,1759327861857,-500.0,0.00022739,2]
[388710752,1759327861867,-531.08,0.00022739,2]
[388710753,1759327861877,-1044.52,0.00022739,2]
[388710754,1759327861887,-500.0,0.00022739,2]
[388710755,1759327861897,-500.0,0.00022739,2]
[388710756,1759327861907,-553.59,0.00022739,2]
[388710757,1759327861917,-1415.31,0.00022739,2]
[388710758,1759327861927,-500.0,0.00022739,2]
[388710759,1759327861936,-500.0,0.00022739,2]
[388710760,1759327861948,-534.93,0.00022739,2]
[388710761,1759327861957,-594.58,0.00022739,2]
[388710762,1759327861967,-500.0,0.00022739,2]
[388710763,1759327861976,-598.62,0.00022739,2]
[388710764,1759327861986,-500.0,0.00022739,2]
[388710765,1759327861996,-583.19,0.00022739,2]
[388710766,1759327862005,-1396.49,0.00022739,2]
[388710767,1759327862014,-585.06,0.00022739,2]
[388710768,1759327862024,-500.0,0.00022739,2]
[388710769,1759327862033,-626.73,0.00022739,2]
[388710770,1759327862043,-500.0,0.00022739,2]
[388710771,1759327862053,-654.19,0.00022739,2]
[388710772,1759327862062,-500.0,0.00022739,2]
[388710773,1759327862072,-990.91,0.00022739,2]
[388710774,1759327862082,-871.03,0.00022739,2]
[388710775,1759327862092,-680.72,0.00022739,2]
[388710776,1759327862101,-500.0,0.00022739,2]
[388710777,1759327862111,-1061.8,0.00022739,2]
[388710778,1759327862120,-211.13220867,0.00022739,2]
[388710779,1759327862129,-500.0,0.00022739,2]
[388710780,1759327862138,-587.0,0.00022765,2]
[388710781,1759327862147,-12707.11664056,0.00022898,2]
[388710782,1759327862156,-250.0,0.00022904,2]
[388710783,1759327862165,-253.0,0.00022904,8]
[388710784,1759327862174,-168.0,0.0002297,2]
[388710785,1759327862184,-1315.0,0.00022986,2]
[388710786,1759327862195,-771.0,0.00023,5]
[388710787,1759327862204,-160.0,0.00023,2]
[388710788,1759327862215,-104961.315089,0.00023,2]
[388710789,1759327862535,-2274.44702709,0.00023,2]
[388710790,1759327862771,-500.0,0.00019178,2]
[388710791,1759327862781,-2568.6,0.00023,2]
[388710792,1759327864720,800.0,0.00019027,2]
[388710793,1759327887214,225.0,0.00019,2]
[388710794,1759327887720,225.0,0.00019005,2]
[388710795,1759327888216,225.0,0.0001901,2]
[388710796,1759327888721,225.0,0.00019015,2]
[388710797,1759327889223,225.0,0.00019021,2]
[388710798,1759327889735,225.0,0.00019026,2]
[388710799,1759327890223,225.0,0.00019031,2]
[388710800,1759327890734,225.0,0.00019036,2]
[388710801,1759327891228,225.0,0.00019042,2]
[388710802,1759327891857,225.0,0.00019047,2]
[388710803,1759327892232,225.0,0.00019052,2]
[388710804,1759327892759,225.0,0.00019057,2]
[388710805,1759327893310,225.0,0.00019063,2]
[388710806,1759327893739,225.0,0.00019068,2]
[388710807,1759327894244,225.0,0.00019073,2]
[388710808,1759327894751,225.0,0.00019078,2]
[388710830,1759327920972,275.0,0.00019,2]
[388710831,1759327930076,2575.24202137,0.00018,2]
[388710832,1759327963392,3700.0,0.00033839,60]
[388710834,1759328059314,295.0,0.00019,2]
[388710839,1759328186709,2454.76797863,0.00019,2]
[388710840,1759328186735,10000.01,0.00019,2]
[388710841,1759328186759,10000.01,0.00019,2]
[388710842,1759328186783,10000.01,0.00019,2]
[388710843,1759328186807,10000.01,0.00019,2]
[388710844,1759328186831,10000.01,0.00019,2]
[388710845,1759328186860,10000.01,0.00019,2]
[388710846,1759328186885,10000.01,0.00019,2]
[388710847,1759328186910,10000.01,0.00019,2]
[388710848,1759328186935,10000.01,0.00019,2]
[388710849,1759328186965,80436.23056803,0.00019,2]
[388710850,1759328201126,503.45255763,0.00019008,2]
[388710853,1759328224568,152.0,0.00019078,2]
[388710854,1759328232601,599.97988972,0.00019078,2]
[388710855,1759328234927,297.0,9.3e-07,2]
[388710856,1759328241328,5000.0,0.00019078,2]
[388710858,1759328250327,414.3723371,0.00019078,2]
[388710859,1759328273057,2846.83185682,0.00019078,2]
[388710860,1759328276358,689.82591636,0.00018178,2]
[388710861,1759328276381,7028.31575514,0.00018178,2]
[388710862,1759328288565,2971.69424486,0.00019078,2]
[388710863,1759328288589,2028.30575514,0.00019078,2]
[388710864,1759328296553,3852.07011425,0.00019078,2]
[388710865,1759328301389,261.25,0.00019,2]
[388710867,1759328319554,480.0,0.00019078,2]
[388710873,1759328424138,168.6,0.000189,2]
[388710878,1759328511381,3209.78413061,0.00019078,2]
[388710879,1759328511405,1790.21586939,0.00019078,2]
[388710881,1759328525640,300.0,0.000189,2]
[388710883,1759328551213,231.9984478,0.00018176,2]
[388710887,1759328694408,5000.0,0.00019078,2]
[388710891,1759328728117,786.5490695,0.00018319,2]
[388710897,1759328805070,1891.24661331,0.00019078,2]
[388710898,1759328805099,3108.75338669,0.00019078,2]
[388710900,1759328820632,5000.0,0.00019078,2]
[388710904,1759328842812,172.0,9.2e-07,2]
[388710905,1759328843906,172.0,9.2e-07,2]
[388710906,1759328845163,172.0,9.2e-07,2]
[388710908,1759328872701,1375.25661331,0.00019078,2]
[388710909,1759328872726,3624.74338669,0.00019078,2]
[388710911,1759328895387,5000.0,0.00019078,2]
[388710912,1759328918414,1375.26661331,0.00019078,2]
[388710913,1759328918438,3624.73338669,0.00019078,2]
[388710914,1759328934143,5000.0,0.00019078,2]
[388710915,1759328942431,1375.27661331,0.00019078,2]
[388710916,1759328942454,3624.72338669,0.00019078,2]
[388710917,1759328968105,3081.21388166,0.0002876,120]
[388710918,1759328986718,5000.0,0.00019078,2]
[388710920,1759329002157,858.201517,0.00018171,2]
[388710923,1759329025173,517.08509631,0.00019078,2]
[388710924,1759329025197,4482.91490369,0.00019078,2]
[388710950,1759329032092,-2200.2,0.00019078,2]
[388710967,1759329032262,-1497.30543682,0.00019078,2]
[388710969,1759329032272,-500.0,0.000191,2]
[388710971,1759329032282,-300.0,0.00019167,2]
[388710974,1759329032292,-1200.0,0.00019167,2]
[388710978,1759329032302,-276.33,0.00019168,3]
[388710982,1759329032311,-517.42,0.00019168,3]
[388710985,1759329032320,-258.71,0.00019168,3]
[388710988,1759329032329,-776.17,0.00019168,3]
[388710992,1759329032338,-419.43026682,0.00019172,2]
[388710995,1759329032348,-255.15880915,0.00019172,2]
[388710999,1759329032357,-500.0,0.00019172,2]
[388711002,1759329032366,-521.28736249,0.00019172,2]
[388711006,1759329032375,-500.0,0.00019172,2]
[388711010,1759329032385,-500.0,0.00019172,2]
[388711013,1759329032395,-500.0,0.00019172,2]
[388711015,1759329032404,-500.0,0.00019172,2]
[388711017,1759329032414,-500.0,0.00019172,2]
[388711019,1759329032423,-500.0,0.00019172,2]
[388711021,1759329032432,-500.0,0.00019172,2]
[388711022,1759329032441,-500.0,0.00019172,2]
[388711023,1759329032450,-500.0,0.00019172,2]
[388711024,1759329032460,-500.0,0.00019172,2]
[388711025,1759329032470,-500.0,0.00019172,2]
[388711026,1759329032479,-500.0,0.00019172,2]
[388711027,1759329032488,-581.21125397,0.00019172,2]
[388711028,1759329032498,-500.0,0.00019172,2]
[388711029,1759329032508,-500.0,0.00019172,2]
[388711030,1759329032517,-500.0,0.00019172,2]
[388711031,1759329032527,-500.0,0.00019172,2]
[388711032,1759329032536,-500.0,0.00019172,2]
[388711033,1759329032546,-500.0,0.00019172,2]
[388711034,1759329032555,-500.0,0.00019172,2]
[388711035,1759329032564,-500.0,0.00019172,2]
[388711036,1759329032574,-500.0,0.00019172,2]
[388711037,1759329032583,-500.0,0.00019172,2]
[388711038,1759329032592,-500.0,0.00019172,2]
[388711039,1759329032602,-500.0,0.00019172,2]
[388711040,1759329032611,-500.0,0.00019172,2]
[388711041,1759329032620,-500.0,0.00019172,2]
[388711042,1759329032629,-500.0,0.00019172,2]
[388711043,1759329032639,-500.0,0.00019172,2]
[388711044,1759329032648,-500.0,0.00019172,2]
[388711045,1759329032658,-500.0,0.00019172,2]
[388711046,1759329032667,-500.0,0.00019172,2]
[388711047,1759329032676,-367.06453108,0.00019172,2]
[388711048,1759329032686,-500.0,0.00019172,2]
[388711049,1759329032695,-489.2467048,0.00019172,2]
[388711050,1759329032704,-500.0,0.00019172,2]
[388711051,1759329032713,-608.99799495,0.00019172,2]
[388711052,1759329032724,-500.0,0.00019172,2]
[388711053,1759329032733,-500.0,0.00019172,2]
[388711054,1759329032742,-500.0,0.00019172,2]
[388711055,1759329032752,-500.0,0.00019172,2]
[388711056,1759329032761,-500.0,0.00019172,2]
[388711057,1759329032771,-500.0,0.00019172,2]
[388711058,1759329032781,-500.0,0.00019172,2]
[388711059,1759329032791,-500.0,0.00019172,2]
[388711060,1759329032809,-500.0,0.00019172,2]
[388711061,1759329032820,-500.0,0.00019172,2]
[388711062,1759329032830,-500.0,0.00019172,2]
[388711063,1759329032839,-500.0,0.00019172,2]
[388711064,1759329032850,-500.0,0.00019172,2]
[388711065,1759329032860,-231.85307434,0.00019172,2]
[388711086,1759329038097,-268.14692566,0.00019172,2]
[388711088,1759329038108,-500.0,0.00019172,2]
[388711090,1759329038117,-500.0,0.00019172,2]
[388711093,1759329038129,-500.0,0.00019172,2]
[388711095,1759329038139,-500.0,0.00019172,2]
[388711097,1759329038149,-500.0,0.00019172,2]
[388711099,1759329038161,-500.0,0.00019172,2]
[388711101,1759329038172,-500.0,0.00019172,2]
[388711103,1759329038181,-500.0,0.00019172,2]
[388711104,1759329038191,-500.0,0.00019172,2]
[388711107,1759329038202,-500.0,0.00019172,2]
[388711108,1759329038211,-500.0,0.00019172,2]
[388711110,1759329038221,-500.0,0.00019172,2]
[388711112,1759329038233,-500.0,0.00019172,2]
[388711114,1759329038243,-623.51782703,0.00019172,2]
[388711116,1759329038252,-500.0,0.00019172,2]
[388711117,1759329038262,-500.0,0.00019172,2]
[388711118,1759329038272,-500.0,0.00019172,2]
[388711119,1759329038282,-500.0,0.00019172,2]
[388711120,1759329038292,-500.0,0.00019172,2]
[388711121,1759329038301,-500.0,0.00019172,2]
[388711122,1759329038315,-500.0,0.00019172,2]
[388711123,1759329038325,-500.0,0.00019172,2]
[388711124,1759329038335,-500.0,0.00019172,2]
[388711125,1759329038344,-500.0,0.00019172,2]
[388711126,1759329038354,-500.0,0.00019172,2]
[388711128,1759329038365,-500.0,0.00019172,2]
[388711130,1759329038375,-500.0,0.00019172,2]
[388711132,1759329038385,-500.0,0.00019172,2]
[388711134,1759329038395,-500.0,0.00019172,2]
[388711135,1759329038405,-500.0,0.00019172,2]
[388711136,1759329038415,-500.0,0.00019172,2]
[388711137,1759329038424,-500.0,0.00019172,2]
[388711138,1759329038434,-278.58287834,0.00019172,2]
[388711139,1759329038443,-500.0,0.00019172,2]
[388711140,1759329038453,-500.0,0.00019172,2]
[388711141,1759329038462,-583.41365683,0.00019172,2]
[388711142,1759329038472,-500.0,0.00019172,2]
[388711143,1759329038483,-500.0,0.00019172,2]
[388711144,1759329038493,-500.0,0.00019172,2]
[388711145,1759329038502,-359.19267265,0.00019172,2]
[388711146,1759329038512,-500.0,0.00019172,2]
[388711147,1759329038522,-500.0,0.00019172,2]
[388711148,1759329038534,-1200.0,0.00019172,2]
[388711149,1759329038544,-21970.58957861,0.00019172,2]
[388711150,1759329038554,-503.39666412,0.00019173,2]
[388711151,1759329038564,-500.0,0.00019173,2]
[388711152,1759329038574,-500.0,0.00019173,2]
[388711153,1759329038584,-500.0,0.00019173,2]
[388711154,1759329038595,-500.0,0.00019173,2]
[388711155,1759329038604,-260.61538826,0.00019178,2]
[388711156,1759329038615,-500.0,0.00019178,2]
[388711157,1759329038627,-500.0,0.00019178,2]
[388711158,1759329038638,-480.0,0.00019178,2]
[388711159,1759329038648,-500.0,0.00019178,2]
[388711160,1759329038659,-464.60735704,0.00019178,2]
[388711161,1759329038668,-360.81534658,0.00019178,2]
[388711162,1759329038681,-102.28432064,0.00019178,2]
[388711163,1759329038691,-500.0,0.00019178,2]
[388711164,1759329038701,-431.2406212,0.00019178,2]
[388711165,1759329038710,-260.30061139,0.00019178,2]
[388711177,1759329039992,-239.69938861,0.00019178,2]
[388711178,1759329040003,-500.0,0.00019178,2]
[388711179,1759329040012,-480.0,0.00019178,2]
[388711180,1759329040022,-480.0,0.00019178,2]
[388711182,1759329040032,-480.0,0.00019178,2]
[388711184,1759329040044,-480.0,0.00019178,2]
[388711185,1759329040053,-500.0,0.00019178,2]
[388711186,1759329040062,-480.0,0.00019178,2]
[388711187,1759329040071,-480.0,0.00019178,2]
[388711188,1759329040085,-500.0,0.00019178,2]
[388711189,1759329040097,-480.0,0.00019178,2]
[388711190,1759329040110,-480.0,0.00019178,2]
[388711191,1759329040125,-594.89,0.00019178,2]
[388711192,1759329040134,-500.0,0.00019178,2]
[388711193,1759329040143,-480.0,0.00019178,2]
[388711194,1759329040156,-480.0,0.00019178,2]
[388711195,1759329040166,-485.17656203,0.00019178,2]
[388711196,1759329040175,-480.0,0.00019178,2]
[388711197,1759329040184,-480.0,0.00019178,2]
[388711198,1759329040195,-500.0,0.00019178,2]
[388711199,1759329040204,-460.05424999,0.00019178,2]
[388711200,1759329040213,-480.0,0.00019178,2]
[388711201,1759329040222,-480.0,0.00019178,2]
[388711202,1759329040233,-484.5,0.00019178,2]
[388711203,1759329040242,-472.04280519,0.00019178,2]
[388711204,1759329040252,-480.0,0.00019178,2]
[388711205,1759329040261,-740.25,0.00019178,2]
[388711206,1759329040271,-740.25,0.00019178,2]
[388711207,1759329040280,-480.0,0.00019178,2]
[388711208,1759329040290,-480.0,0.00019178,2]
[388711209,1759329040299,-480.0,0.00019178,2]
[388711210,1759329040309,-500.0,0.00019178,2]
[388711211,1759329040318,-480.0,0.00019178,2]
[388711212,1759329040328,-581.79,0.00019178,2]
[388711213,1759329040337,-500.0,0.00019178,2]
[388711214,1759329040347,-480.0,0.00019178,2]
[388711215,1759329040356,-480.0,0.00019178,2]
[388711216,1759329040367,-480.0,0.00019178,2]
[388711217,1759329040376,-486.72,0.00019178,2]
[388711218,1759329040386,-500.0,0.00019178,2]
[388711219,1759329040395,-480.0,0.00019178,2]
[388711220,1759329040405,-480.0,0.00019178,2]
[388711221,1759329040414,-500.0,0.00019178,2]
[388711222,1759329040423,-480.0,0.00019178,2]
[388711223,1759329040433,-500.0,0.00019178,2]
[388711224,1759329040443,-500.0,0.00019178,2]
[388711225,1759329040453,-550.26,0.00019178,2]
[388711226,1759329040463,-480.0,0.00019178,2]
[388711227,1759329040471,-480.0,0.00019178,2]
[388711228,1759329040481,-500.0,0.00019178,2]
[388711229,1759329040490,-480.0,0.00019178,2]
[388711230,1759329040499,-500.0,0.00019178,2]
[388711231,1759329040508,-483.62295835,0.00019178,2]
[388711232,1759329040518,-500.0,0.00019178,2]
[388711233,1759329040528,-500.0,0.00019178,2]
[388711234,1759329040537,-480.0,0.00019178,2]
[388711235,1759329040547,-500.0,0.00019178,2]
[388711236,1759329040556,-493.53,0.00019178,2]
[388711237,1759329040729,-480.0,0.00019178,2]
[388711238,1759329040778,-480.0,0.00019178,2]
[388711239,1759329040787,-500.0,0.00019178,2]
[388711240,1759329040797,-482.48613181,0.00019178,2]
[388711241,1759329040807,-480.0,0.00019178,2]
[388711242,1759329040816,-449.47499561,0.00019178,2]
[388711243,1759329040825,-516.6091099,0.00019178,2]
[388711244,1759329040834,-480.0,0.00019178,2]
[388711245,1759329040843,-509.67873533,0.00019178,2]
[388711246,1759329040853,-500.0,0.00019178,2]
[388711247,1759329040862,-487.32,0.00019178,2]
[388711248,1759329040871,-460.62084668,0.00019178,2]
[388711249,1759329040880,-480.0,0.00019178,2]
[388711250,1759329040889,-445.69459996,0.00019178,2]
[388711251,1759329040898,-504.1,0.00019178,2]
[388711252,1759329040907,-500.0,0.00019178,2]
[388711253,1759329040916,-500.0,0.00019178,2]
[388711254,1759329040925,-480.0,0.00019178,2]
[388711255,1759329040934,-480.0,0.00019178,2]
[388711256,1759329040943,-637.25332657,0.00019178,2]
[388711257,1759329040952,-480.0,0.00019178,2]
[388711258,1759329040961,-500.0,0.00019178,2]
[388711259,1759329040970,-480.0,0.00019178,2]
[388711260,1759329040980,-480.0,0.00019178,2]
[388711261,1759329040990,-500.0,0.00019178,2]
[388711262,1759329040999,-500.0,0.00019178,2]
[388711263,1759329041008,-480.0,0.00019178,2]
[388711264,1759329041017,-500.0,0.00019178,2]
[388711265,1759329041026,-500.0,0.00019178,2]
[388711266,1759329041035,-500.0,0.00019178,2]
[388711267,1759329041045,-1094.12,0.00019178,2]
[388711268,1759329041054,-500.0,0.00019178,2]
[388711269,1759329041063,-480.0,0.00019178,2]
[388711270,1759329041072,-500.0,0.00019178,2]
[388711271,1759329041085,-480.0,0.00019178,2]
[388711272,1759329041094,-500.0,0.00019178,2]
[388711273,1759329041103,-186.42684209,0.00019178,2]
[388711274,1759329041112,-480.0,0.00019178,2]
[388711275,1759329041121,-254.51084514,0.00019178,2]
[388711276,1759329041132,-500.0,0.00019178,2]
[388711277,1759329041154,-480.0,0.00019178,2]
[388711278,1759329041165,-493.75,0.00019178,2]
[388711279,1759329041174,-500.0,0.00019178,2]
[388711280,1759329041183,-500.0,0.00019178,2]
[388711281,1759329041197,-500.0,0.00019178,2]
[388711282,1759329041206,-480.0,0.00019178,2]
[388711283,1759329041216,-480.0,0.00019178,2]
[388711284,1759329041225,-461.900177,0.00019178,2]
[388711285,1759329041234,-500.0,0.00019178,2]
[388711286,1759329041243,-562.83,0.00019178,2]
[388711287,1759329041252,-500.0,0.00019178,2]
[388711288,1759329041261,-709.96,0.00019178,2]
[388711289,1759329041270,-500.0,0.00019178,2]
[388711290,1759329041281,-500.0,0.00019178,2]
[388711291,1759329041290,-500.0,0.00019178,2]
[388711292,1759329041300,-500.0,0.00019178,2]
[388711293,1759329041309,-480.0,0.00019178,2]
[388711294,1759329041319,-500.0,0.00019178,2]
[388711295,1759329041328,-480.0,0.00019178,2]
[388711296,1759329041337,-480.0,0.00019178,2]
[388711297,1759329041347,-33.64711686,0.00019178,2]
[388711298,1759329041654,453.04878364,0.00019,2]
[388711305,1759329043372,-466.35288314,0.00019178,2]
[388711307,1759329043381,-500.0,0.00019178,2]
[388711309,1759329043390,-500.0,0.00019178,2]
[388711311,1759329043399,-480.0,0.00019178,2]
[388711313,1759329043408,-606.62,0.00019178,2]
[388711315,1759329043418,-624.92,0.00019178,2]
[388711316,1759329043427,-500.0,0.00019178,2]